bitfinex/quotes_ETHUSD_20241129
["timestamp","ask_amount","ask_price","bid_price","bid_amount"]
[1732886741694,1.29479406,3607.4,3606.8,2.7725]
[1732886741859,1.29479406,3607.4,3606.6,2.77266]
[1732886741860,1.2081,3607.4,3606.6,2.77266]
[1732886742052,3.63669406,3607.3,3606.2,1.1298]
[1732886742254,0.08669406,3607.2,3606.5,2.77271]
[1732886742450,0.08669406,3607.1,3606.5,2.77271]
[1732886742688,0.08669406,3607.2,3606.5,2.77271]
[1732886742874,0.08669406,3607.3,3606.6,2.77262]
[1732886743079,0.08669406,3607.2,3606.6,2.77262]
[1732886743384,0.08669406,3607.3,3606.6,2.77262]
[1732886743561,0.08669406,3607.2,3606.6,2.77262]
[1732886743761,0.08669406,3607.1,3606.6,2.77262]
[1732886743962,0.08669406,3607.3,3606.6,2.77262]
[1732886744284,0.08669406,3607.2,3606.6,2.77262]
[1732886744450,0.08669406,3607.1,3607.0,2.77233]
[1732886744652,1.2081,3607.4,3606.4,2.77283]
[1732886744653,0.08669406,3607.3,3607.1,2.77224]
[1732886744883,2.77165,3608.0,3607.1,2.77225]
[1732886744884,1.2512,3607.7,3607.1,2.77225]
[1732886745193,0.08669406,3607.6,3607.2,2.77221]
[1732886745388,0.08669406,3607.5,3607.1,2.77225]
[1732886745569,0.08669406,3607.4,3607.1,2.77225]
[1732886745769,0.08669406,3607.6,3607.3,2.77211]
[1732886746093,0.08669406,3607.5,3607.3,2.77211]
[1732886746245,0.08669406,3607.4,3607.3,2.77215]
[1732886746453,0.08669406,3607.9,3607.5,2.77195]
[1732886746753,0.08669406,3607.8,3607.5,2.77195]
[1732886746949,0.08669406,3607.7,3606.9,3.90445]
[1732886747169,0.08669406,3607.6,3606.9,3.90445]
[1732886747369,0.08669406,3607.9,3606.9,1.132]
[1732886747591,2.77115,3608.7,3606.9,1.132]
[1732886747592,0.08669406,3607.8,3607.6,2.77185]
[1732886747890,0.08669406,3607.7,3607.6,2.77185]
[1732886748086,0.08669406,3608.2,3607.6,2.77185]
[1732886748338,0.08669406,3608.1,3607.6,1.2217]
[1732886748623,0.08669406,3608.0,3607.9,2.77164]
[1732886750454,0.08669406,3608.0,3607.9,3.448158]
[1732886750723,3.0,3609.0,3607.9,3.448158]
[1732886750724,0.08669406,3608.5,3608.4,2.77131]
[1732886751082,0.08669406,3608.9,3608.5,2.77118]
[1732886751287,1.2363,3609.0,3608.3,2.77138]
[1732886751288,0.08669406,3608.8,3608.3,2.77138]
[1732886751517,0.08669406,3608.7,3608.0,1.1326]
[1732886751723,3.02691535,3609.6,3608.7,2.77102]
[1732886751724,1.23,3609.6,3608.7,2.77102]
[1732886751915,0.08667684,3609.5,3608.8,2.77094]
[1732886752114,0.08667684,3609.4,3608.7,2.77106]
[1732886752311,0.08667684,3609.3,3608.2,2.77146]
[1732886752626,7.00041,3609.6,3608.1,0.1809118]
[1732886752627,0.08667684,3609.2,3608.4,2.77126]
[1732886752832,0.08667684,3609.1,3608.5,2.77121]
[1732886753132,1.31667684,3609.0,3608.4,2.7713]
[1732886753430,0.08667684,3608.9,3608.4,2.7713]
[1732886753640,0.08667684,3608.8,3608.4,2.7713]
[1732886753837,0.08668224,3608.7,3608.4,2.7713]
[1732886753989,0.08668224,3608.6,3608.4,2.7713]
[1732886754187,0.08668224,3608.9,3608.4,2.7713]
[1732886754492,1.23,3609.0,3608.4,2.7713]
[1732886754493,0.08668224,3608.8,3608.4,2.7713]
[1732886754722,1.23,3609.0,3608.2,2.77146]
[1732886754723,0.08668224,3608.7,3608.2,2.77146]
[1732886754923,0.08668224,3608.6,3608.2,2.77146]
[1732886755126,0.08668224,3608.9,3608.3,2.77132]
[1732886755427,0.08668224,3608.8,3608.3,2.77132]
[1732886755639,0.08668224,3608.7,3608.3,2.77132]
[1732886755792,0.08668224,3608.9,3608.3,2.77132]
[1732886755999,0.08668224,3608.8,3608.2,2.77146]
[1732886756198,0.08668224,3608.9,3608.5,2.77123]
[1732886756643,0.08668224,3608.8,3608.5,2.77123]
[1732886756805,0.08668224,3608.9,3608.5,2.77123]
[1732886757007,0.08668224,3608.9,3608.2,0.390406]
[1732886757212,0.08668224,3609.4,3608.4,1.2377]
[1732886757393,0.08668224,3609.4,3608.3,0.1523006]
[1732886757394,0.08668224,3609.3,3609.2,2.77069]
[1732886757598,1.142,3609.9,3609.2,2.77069]
[1732886757599,0.08668224,3609.8,3609.3,2.77059]
[1732886757838,0.08668224,3609.7,3609.2,2.77069]
[1732886757999,0.08668224,3609.8,3609.4,2.77054]
[1732886758201,1.142,3609.9,3609.4,2.77054]
[1732886758504,1.142,3609.9,3609.5,2.77046]
[1732886758898,1.142,3609.9,3609.3,2.7706]
[1732886759731,1.142,3609.9,3609.4,2.77052]
[1732886760513,1.142,3609.9,3609.1,4.00845]
[1732886760847,1.142,3609.9,3609.5,2.77043]
[1732886761056,1.1661,3610.2,3609.8,2.77023]
[1732886761343,0.08668224,3610.6,3609.9,2.77013]
[1732886761546,1.1889,3610.5,3609.9,2.77013]
[1732886761836,3.0,3610.4,3609.6,2.77037]
[1732886762016,0.08668224,3610.3,3609.7,2.7703]
[1732886762215,1.27558224,3610.5,3609.7,2.7703]
[1732886762430,1.1889,3610.5,3609.9,2.77015]
[1732886762732,1.1889,3610.5,3609.5,2.77043]
[1732886763036,1.1889,3610.5,3609.8,2.77023]
[1732886763246,1.27554974,3610.5,3609.8,2.77023]
[1732886763637,1.2403,3610.3,3609.2,2.77069]
[1732886763970,1.2403,3610.3,3610.0,2.77008]
[1732886764178,0.08664756,3610.7,3610.0,2.77008]
[1732886764338,1.27194756,3611.0,3610.5,2.76969]
[1732886764533,1.1853,3611.0,3610.5,2.76969]
[1732886764737,1.1853,3611.0,3610.3,2.76985]
[1732886764935,1.1853,3611.0,3610.1,2.76998]
[1732886764936,3.95467,3611.0,3610.1,2.76998]
[1732886765192,1.1853,3611.0,3610.1,2.76998]
[1732886765733,1.1853,3611.0,3610.3,2.76984]
[1732886766482,1.1853,3611.0,3610.1,2.76998]
[1732886766689,1.1853,3611.0,3610.0,2.77008]
[1732886766986,1.1853,3611.0,3610.2,2.76986]
[1732886767198,1.1853,3611.0,3610.4,2.76977]
[1732886768356,1.1582,3611.4,3610.0,0.398678]
[1732886768561,1.1582,3611.4,3610.5,2.76968]
[1732886768860,4.1582,3611.4,3610.7,2.76953]
[1732886769400,4.1582,3611.4,3610.8,2.76945]
[1732886769595,1.1582,3611.4,3610.8,2.76945]
[1732886769800,4.1762,3610.7,3610.1,0.55124615]
[1732886770000,4.1762,3610.7,3610.0,2.77007]
[1732886770172,4.1762,3610.7,3610.0,2.77005]
[1732886770355,2.76972,3610.5,3609.8,2.77021]
[1732886770557,3.0,3610.5,3609.9,2.77015]
[1732886770999,3.0,3610.5,3609.6,3.95148]
[1732886771000,5.76972,3610.5,3609.7,2.7703]
[1732886771151,3.0,3610.5,3609.7,2.7703]
[1732886771357,6.94579,3610.7,3609.8,2.77018]
[1732886771561,2.76971,3610.5,3609.7,3.16544]
[1732886771755,2.77005,3610.1,3609.3,3.171449]
[1732886772099,2.77005,3610.1,3609.3,2.77061]
[1732886772398,1.2303,3610.3,3609.1,2.77075]
[1732886772562,2.77013,3610.0,3609.1,2.77075]
[1732886772768,1.2524,3609.7,3608.9,2.77092]
[1732886773111,1.2524,3609.7,3608.7,4.01986]
[1732886773112,2.77051,3609.5,3608.7,4.01986]
[1732886773282,2.77065,3609.3,3608.7,0.679107]
[1732886773463,2.77059,3609.4,3608.5,2.77121]
[1732886773672,2.77071,3609.2,3608.4,1.2174]
[1732886773870,3.98288,3609.1,3608.4,1.2174]
[1732886774204,3.98288,3609.1,3608.4,2.77129]
[1732886775504,2.77093,3608.9,3608.2,2.77145]
[1732886776077,2.77093,3608.9,3608.3,2.77135]
[1732886776399,2.77087,3609.0,3608.3,2.77135]
[1732886776912,2.77093,3608.9,3608.1,2.77153]
[1732886777111,2.77106,3608.8,3608.1,0.55432]
[1732886777310,2.77113,3608.7,3608.1,0.55432]
[1732886777608,2.77109,3608.7,3607.8,2.77176]
[1732886777915,2.77125,3608.5,3607.8,2.77176]
[1732886778115,3.90837,3608.4,3607.7,3.97453]
[1732886778405,2.77141,3608.3,3607.7,3.97453]
[1732886779178,2.77156,3608.1,3607.5,2.77194]
[1732886779399,2.77156,3608.1,3607.4,1.75269485]
[1732886779713,2.77163,3608.0,3607.4,1.75269485]
[1732886779876,2.77173,3607.9,3607.4,0.55609485]
[1732886780071,2.77182,3607.8,3607.4,0.55609485]
[1732886780607,2.7719,3607.7,3607.1,4.01248]
[1732886780770,2.772,3607.5,3606.8,3.94372]
[1732886780971,0.2,3609.4,3607.7,2.77179]
[1732886780972,0.55,3608.8,3607.7,2.77179]
[1732886781172,2.77141,3608.3,3607.7,2.77179]
[1732886781499,2.77141,3608.3,3607.6,3.94311]
[1732886781806,2.77124,3608.5,3607.8,2.77175]
[1732886782015,2.7711,3608.7,3608.0,2.77159]
[1732886782509,2.77117,3608.6,3608.0,2.77159]
[1732886782807,2.77117,3608.6,3607.8,2.77176]
[1732886783012,2.77117,3608.6,3607.8,3.443246]
[1732886783194,2.771,3608.8,3608.0,2.7716]
[1732886783406,2.771,3608.8,3608.1,2.77151]
[1732886783578,2.77117,3608.6,3607.9,2.77169]
[1732886784611,2.77102,3608.8,3608.1,2.77153]
[1732886784812,2.77102,3608.8,3608.1,3.3930006]
[1732886785514,2.77102,3608.8,3608.2,2.77145]
[1732886785834,1.1908,3609.2,3608.3,1.1843]
[1732886786128,4.04818205,3609.2,3608.5,2.77116]
[1732886786272,3.9615,3609.2,3608.6,0.48778326]
[1732886786975,3.9615,3609.2,3608.5,2.77116]
[1732886787398,1.1908,3609.2,3608.5,2.77116]
[1732886787707,4.01389,3609.6,3608.8,2.771]
[1732886788521,4.01389,3609.6,3609.0,2.77078]
[1732886788670,2.77025,3609.8,3609.2,2.77063]
[1732886789424,2.77024,3609.8,3609.2,2.77063]
[1732886789839,2.77043,3609.6,3609.0,1.1545]
[1732886790128,2.77028,3609.8,3609.1,2.77077]
[1732886790313,2.77033,3609.7,3609.1,2.77077]
[1732886790844,2.77059,3609.4,3608.7,1.2222]
[1732886791022,2.77059,3609.4,3608.8,2.77098]
[1732886792093,2.77059,3609.4,3608.9,2.77092]
[1732886792295,2.77048,3609.5,3608.9,2.77092]
[1732886792792,2.77039,3609.6,3609.0,2.77084]
[1732886793379,3.0,3610.3,3609.0,2.77084]
[1732886793380,4.1722,3610.3,3609.2,2.77066]
[1732886793505,2.77013,3610.0,3609.1,1.1326]
[1732886793841,2.7698,3610.4,3609.9,1.1652]
[1732886794133,2.76939,3610.9,3610.3,2.76983]
[1732886794539,2.76939,3610.9,3610.0,2.77006]
[1732886794692,1.1361,3611.2,3610.4,2.76971]
[1732886795031,2.76926,3611.1,3610.5,2.76963]
[1732886795637,1.1343,3611.5,3610.3,2.76979]
[1732886795638,2.76932,3611.0,3610.3,2.76979]
[1732886795935,2.76946,3610.9,3610.1,2.76995]
[1732886796097,2.76948,3610.8,3610.1,2.76995]
[1732886796295,2.76948,3610.8,3610.1,3.4798316]
[1732886796528,2.76956,3610.7,3610.1,3.4798316]
[1732886796730,2.76956,3610.7,3609.9,3.93534]
[1732886797033,2.76956,3610.7,3610.0,2.77003]
[1732886797263,2.71956,3610.7,3610.0,2.77003]
[1732886797430,2.76913,3611.3,3610.2,2.7699]
[1732886797431,2.76939,3610.9,3610.2,2.7699]
[1732886797627,2.76939,3610.9,3610.3,2.76978]
[1732886797826,2.76947,3610.8,3609.9,3.93529]
[1732886798057,2.76985,3610.3,3609.9,1.1652]
[1732886798257,2.76977,3610.4,3609.3,2.77062]
[1732886798571,2.77013,3610.0,3609.3,2.77062]
[1732886798921,2.76992,3610.2,3609.3,2.77062]
[1732886799124,2.77016,3609.9,3609.3,2.77062]
[1732886799526,2.77034,3609.7,3609.2,1.2145]
[1732886800903,2.77029,3609.8,3609.2,1.2145]
[1732886801023,2.77006,3610.1,3609.2,1.2145]
[1732886801226,2.77018,3609.9,3609.3,2.77061]
[1732886802133,2.77018,3609.9,3609.3,3.446197]
[1732886802363,3.9887,3610.5,3609.6,2.77033]
[1732886802563,2.76994,3610.2,3609.6,2.77033]
[1732886803363,2.77017,3609.9,3609.3,0.675587]
[1732886803548,2.77023,3609.8,3609.2,1.2145]
[1732886803751,3.0,3610.4,3609.2,1.2145]
[1732886803951,2.77044,3609.6,3609.2,1.2145]
[1732886804270,2.77031,3609.7,3609.2,1.2145]
[1732886804781,2.76992,3610.2,3609.2,1.2145]
[1732886804981,2.77047,3609.5,3609.2,1.2145]
[1732886805363,2.77039,3609.6,3609.2,1.2145]
[1732886805687,2.7704,3609.6,3609.2,1.2145]
[1732886806248,2.77054,3609.4,3609.2,1.2145]
[1732886806476,1.1281,3610.8,3609.2,3.82512675]
[1732886806791,1.1281,3610.8,3609.0,1.1628]
[1732886806792,3.89732,3611.2,3610.3,2.76984]
[1732886806945,2.7694,3610.9,3610.3,2.76984]
[1732886807398,2.76952,3610.8,3610.0,2.77003]
[1732886807568,1.1281,3611.2,3610.0,2.77003]
[1732886807746,1.21473818,3611.2,3610.0,2.77003]
[1732886807947,2.76955,3610.7,3610.0,2.77003]
[1732886808173,2.76955,3610.7,3610.1,0.554026]
[1732886808558,2.76955,3610.7,3610.1,3.323966]
[1732886808873,2.76935,3611.0,3610.1,3.323966]
[1732886809077,0.08663441,3610.9,3610.1,2.76994]
[1732886809384,0.08663441,3610.9,3610.4,4.00151]
[1732886809691,0.08663441,3610.9,3610.4,1.2318]
[1732886809904,0.08663079,3611.1,3610.4,1.2318]
[1732886810197,0.08663079,3611.2,3610.4,1.2318]
[1732886810381,0.08663079,3611.2,3610.7,2.76952]
[1732886810900,2.85581079,3611.2,3610.5,2.76963]
[1732886811088,0.08663079,3611.1,3610.5,2.76963]
[1732886811270,0.08663079,3611.1,3610.5,0.677127]
[1732886811476,1.2351,3611.7,3610.4,1.2318]
[1732886811477,2.85556079,3611.5,3610.8,2.76941]
[1732886811672,0.08663079,3611.4,3610.8,2.76943]
[1732886811874,2.76911,3611.3,3610.6,2.76959]
[1732886812078,0.08662304,3611.2,3611.0,2.7693]
[1732886812287,1.2351,3611.7,3611.0,2.7693]
[1732886812288,2.8554726,3611.6,3611.0,2.7693]
[1732886812588,2.7687,3611.8,3610.4,1.2318]
[1732886812589,0.0866226,3611.5,3611.1,3.92297]
[1732886812921,2.85539548,3611.7,3611.1,3.92297]
[1732886813071,6.291347,3611.9,3611.2,2.76914]
[1732886813072,0.08661548,3611.6,3611.2,2.76914]
[1732886813276,0.08661548,3611.8,3611.3,2.76907]
[1732886813490,2.85537548,3611.8,3611.1,1.1538]
[1732886813713,0.08661548,3611.7,3611.2,2.7691]
[1732886813879,0.08661548,3611.8,3611.2,2.7691]
[1732886814518,0.08661548,3611.8,3611.1,1.1538]
[1732886814682,2.7689,3611.6,3611.1,1.1538]
[1732886815188,2.76872,3611.8,3611.1,3.92298]
[1732886815395,2.85540353,3611.7,3611.1,3.92298]
[1732886815715,2.85547353,3611.6,3611.1,1.1538]
[1732886815895,2.76901,3611.4,3610.8,2.76946]
[1732886816225,2.76886,3611.6,3610.9,2.76938]
[1732886816712,5.53754,3611.7,3610.6,1.2399]
[1732886816912,2.76919,3611.2,3610.6,1.2399]
[1732886817619,2.76924,3611.1,3610.6,1.2399]
[1732886817819,2.76944,3610.9,3609.9,2.77013]
[1732886818114,1.2229,3611.4,3609.9,0.78115567]
[1732886818301,2.76964,3610.6,3609.8,1.2163]
[1732886818502,2.7697,3610.5,3609.9,2.7701]
[1732886818906,2.76979,3610.4,3609.8,1.2163]
[1732886819219,2.7697,3610.5,3609.8,1.2163]
[1732886819523,2.77007,3610.1,3609.8,1.2163]
[1732886819731,2.77012,3610.0,3609.8,1.2163]
[1732886819875,2.77,3610.2,3609.8,1.2163]
[1732886820512,2.76982,3610.4,3609.8,1.2163]
[1732886820712,2.76985,3610.3,3609.8,1.2163]
[1732886821414,2.76985,3610.3,3609.8,4.662235]
[1732886821711,2.76994,3610.2,3609.8,1.892005]
[1732886821916,2.7697,3610.5,3609.2,1.1485]
[1732886822136,2.77012,3610.0,3609.3,2.77057]
[1732886822499,2.77023,3609.8,3609.3,2.77057]
[1732886822680,2.77023,3609.8,3609.2,1.1485]
[1732886822880,2.77016,3609.9,3609.2,3.91913]
[1732886823124,4.2348,3610.7,3609.3,0.668996]
[1732886823326,2.76969,3610.5,3609.6,2.77038]
[1732886823499,2.76998,3610.2,3609.6,2.77038]
[1732886823694,0.08665353,3610.1,3609.6,2.77038]
[1732886824519,2.85666353,3610.1,3609.5,2.77046]
[1732886824825,2.77001,3610.1,3609.5,2.77046]
[1732886825193,2.76998,3610.2,3609.6,2.77033]
[1732886825386,0.08664971,3610.1,3609.7,2.7703]
[1732886825586,0.08664971,3610.1,3609.5,3.39678712]
[1732886826022,2.76998,3610.2,3609.5,3.39678712]
[1732886826197,0.08664925,3610.1,3609.7,2.77029]
[1732886826405,0.08664925,3610.3,3609.8,3.91533]
[1732886826704,0.08664925,3610.3,3609.8,1.1451]
[1732886827286,0.08664925,3610.3,3609.8,3.91532]
[1732886827627,0.08664925,3610.3,3609.8,1.1451]
[1732886827825,5.76927,3611.1,3609.8,1.1451]
[1732886827826,2.76913,3611.3,3610.6,2.76961]
[1732886828035,0.08663139,3611.2,3610.6,2.76961]
[1732886828463,2.85580139,3611.2,3610.4,2.76976]
[1732886828729,0.08663139,3611.1,3610.6,2.76959]
[1732886829144,0.08663139,3611.1,3610.4,2.76976]
[1732886829292,0.08663139,3611.1,3610.4,3.74549003]
[1732886829495,0.08663139,3611.1,3610.5,2.76968]
[1732886829712,2.85593139,3611.1,3610.4,0.97573003]
[1732886829904,0.08663139,3611.0,3610.4,3.74549003]
[1732886830200,2.7694,3610.9,3610.3,1.198]
[1732886830404,2.7693,3611.1,3610.4,2.76975]
[1732886830600,0.08663053,3611.0,3610.4,2.76975]
[1732886830800,1.1933,3611.4,3610.3,1.198]
[1732886830801,0.08663053,3611.3,3610.6,2.76956]
[1732886831015,0.08663053,3611.2,3610.7,2.76953]
[1732886831219,0.08663053,3611.3,3610.7,2.76953]
[1732886831531,0.08663053,3611.2,3610.7,2.76953]
[1732886831734,0.08663053,3611.3,3610.7,0.5566896]
[1732886831917,0.08663053,3611.3,3610.9,2.76937]
[1732886832238,0.08663053,3611.6,3611.1,2.76923]
[1732886832441,0.08663053,3611.6,3611.2,2.76914]
[1732886832727,0.08663053,3611.7,3611.2,2.76911]
[1732886832944,0.08663053,3611.7,3611.3,2.76907]
[1732886833293,3.522727,3611.9,3611.3,2.76907]
[1732886833526,3.522727,3611.9,3611.4,2.76899]
[1732886833894,3.522727,3611.9,3611.5,2.76892]
[1732886834601,3.522727,3611.9,3611.4,2.76898]
[1732886834818,3.522727,3611.9,3611.2,2.76915]
[1732886835013,3.522727,3611.9,3611.2,3.167455]
[1732886835014,0.08660722,3611.8,3611.2,3.167455]
[1732886835833,0.08660683,3611.8,3611.2,3.167455]
[1732886836034,0.08660683,3611.8,3611.6,2.76884]
[1732886836541,0.08660683,3611.8,3611.7,2.76877]
[1732886836845,0.08660683,3611.8,3611.7,3.90537]
[1732886837045,0.08660683,3611.8,3611.7,4.295907]
[1732886839033,3.522727,3611.9,3611.8,3.9737]
[1732886839455,3.522727,3611.9,3611.8,6.9737]
[1732886839603,2.91381812,3611.9,3611.8,7.5237]
[1732886839807,2.91381812,3611.9,3611.8,6.9737]
[1732886840045,2.91381812,3611.9,3611.8,8.2638797]
[1732886842113,2.91381812,3611.9,3611.8,5.2638797]
[1732886845209,2.91381812,3611.9,3611.8,8.2638797]
[1732886846211,1.39733086,3611.9,3611.8,8.2638797]
[1732886848115,1.39733086,3611.9,3611.8,8.82534094]
[1732886851814,1.39733086,3611.9,3611.8,8.2638797]
[1732886852314,1.39733086,3611.9,3611.8,5.2638797]
[1732886852561,1.39733086,3611.9,3611.8,4.0588797]
[1732886856968,1.39733086,3611.9,3611.5,1.1346]
[1732886857116,1.39733086,3611.9,3610.5,0.1]
[1732886857117,2.76906,3611.4,3610.4,1.2348]
[1732886857322,2.76906,3611.4,3610.5,2.76969]
[1732886857545,1.2135,3611.2,3610.4,1.2348]
[1732886857767,2.76923,3611.1,3610.3,2.76984]
[1732886858081,2.76933,3611.0,3610.4,0.40048]
[1732886858216,2.76932,3611.0,3610.4,2.76976]
[1732886858439,1.2135,3611.2,3610.4,2.76976]
[1732886858440,3.98271,3611.2,3610.4,2.76975]
[1732886858835,2.76926,3611.1,3610.4,2.76975]
[1732886859131,2.76932,3611.0,3610.4,2.76975]
[1732886859321,1.2135,3611.2,3610.0,1.2348]
[1732886859522,2.76932,3611.0,3610.3,2.76981]
[1732886859855,2.76932,3611.0,3610.4,0.553981]
[1732886860032,2.76942,3610.9,3610.4,0.553981]
[1732886860827,3.98268,3611.2,3610.4,0.553981]
[1732886861254,2.76933,3611.0,3610.4,0.553981]
[1732886861635,2.76933,3611.0,3610.4,3.323751]
[1732886862154,3.98268,3611.2,3610.4,3.323751]
[1732886862321,2.76924,3611.1,3610.4,2.76977]
[1732886862721,2.76932,3611.0,3610.4,2.76977]
[1732886864879,2.76902,3611.4,3610.7,3.96479]
[1732886865038,2.76902,3611.4,3610.8,2.76945]
[1732886865761,3.01578865,3611.5,3610.9,2.76933]
[1732886865974,3.01578865,3611.5,3610.0,3.0]
[1732886865975,2.7691,3611.3,3610.0,3.0]
[1732886866162,2.7691,3611.3,3610.6,2.7696]
[1732886867074,2.76918,3611.2,3610.4,2.76972]
[1732886867375,2.76918,3611.2,3610.5,2.76969]
[1732886867936,1.2417,3610.9,3610.3,2.76981]
[1732886868172,1.2417,3610.9,3610.3,0.92902351]
[1732886868370,2.76924,3611.1,3610.4,2.7697]
[1732886868590,2.76924,3611.1,3610.5,2.76968]
[1732886869132,3.91907,3611.2,3610.4,2.7697]
[1732886869375,3.91907,3611.2,3610.6,2.76958]
[1732886870241,2.76924,3611.1,3610.4,2.7697]
[1732886870444,2.76924,3611.1,3610.4,3.39870551]
[1732886871068,2.76932,3611.0,3610.4,3.39870551]
[1732886873061,3.01578865,3611.1,3610.5,2.76969]
[1732886873257,5.78503865,3611.1,3610.5,2.76969]
[1732886873455,5.78503865,3611.1,3610.4,0.62900551]
[1732886873854,5.78503865,3611.1,3610.4,3.39877551]
[1732886874952,5.78503865,3611.1,3610.1,0.75043508]
[1732886874953,2.76964,3610.6,3610.1,0.75043508]
[1732886875259,1.1925,3610.5,3610.0,2.77008]
[1732886875460,1.1925,3610.5,3609.8,2.77021]
[1732886875802,1.1925,3610.5,3610.3,0.56130565]
[1732886876011,1.1925,3610.5,3610.0,2.77008]
[1732886876466,1.1925,3610.5,3610.0,3.312426]
[1732886876795,1.1925,3610.5,3610.1,2.77]
[1732886877165,1.1925,3610.5,3610.1,2.76994]
[1732886877568,1.1925,3610.5,3610.0,0.542346]
[1732886877963,1.1925,3610.5,3610.0,3.312426]
[1732886878294,2.76989,3610.3,3610.0,0.542346]
[1732886878456,2.76989,3610.3,3608.7,4.00737]
[1732886878457,3.01578865,3610.3,3608.7,4.00737]
[1732886878656,5.78648865,3609.2,3608.7,0.400737]
[1732886878963,3.01578865,3609.2,3608.7,0.400737]
[1732886879163,3.01578865,3609.2,3608.7,3.171747]
[1732886879399,1.1897,3609.3,3608.8,2.77096]
[1732886879573,1.1897,3609.3,3608.9,3.3651847]
[1732886880278,1.1897,3609.3,3608.9,0.5942847]
[1732886881000,2.77018,3609.9,3608.4,4.00756]
[1732886881001,2.77028,3609.8,3609.1,2.77075]
[1732886881183,2.85694134,3609.8,3609.2,2.77068]
[1732886881500,2.77028,3609.8,3609.2,2.77068]
[1732886882192,4.20868865,3609.9,3609.2,2.77068]
[1732886882359,4.20868865,3609.9,3609.4,2.77053]
[1732886883061,4.20868865,3609.9,3609.2,2.77067]
[1732886883366,4.20868865,3609.9,3609.4,2.77053]
[1732886883755,4.20868865,3609.9,3609.5,2.77044]
[1732886883956,1.2086,3610.4,3609.3,0.395877]
[1732886884272,2.76955,3610.7,3609.8,4.02021]
[1732886884273,0.08664561,3610.6,3609.8,4.02021]
[1732886884473,2.7697,3610.5,3609.9,2.77011]
[1732886884677,3.01578865,3610.6,3610.1,2.76997]
[1732886884977,3.01578865,3610.6,3609.9,2.77012]
[1732886885178,2.85633881,3610.5,3610.0,0.679033]
[1732886885390,2.85633881,3610.5,3609.2,3.31478957]
[1732886885391,2.7697,3610.5,3609.4,1.2414]
[1732886885586,2.85648245,3610.4,3609.6,2.77031]
[1732886885769,3.01578865,3610.6,3609.4,1.2414]
[1732886886103,2.77008,3610.0,3609.4,2.77054]
[1732886886463,2.77008,3610.0,3609.2,2.77066]
[1732886886798,2.77008,3610.0,3609.3,3.471776]
[1732886886998,1.1825,3610.1,3609.4,2.77047]
[1732886887199,4.03918087,3610.1,3609.5,2.77045]
[1732886887502,3.95253,3610.1,3609.5,2.77045]
[1732886887704,0.08664695,3610.0,3609.5,2.77045]
[1732886887872,0.08664695,3610.0,3609.3,3.471816]
[1732886888193,1.1825,3610.1,3609.4,2.77054]
[1732886888194,1.26914695,3610.1,3609.4,2.77054]
[1732886888369,1.26914695,3610.1,3609.6,2.77031]
[1732886888572,3.94043,3610.4,3609.8,2.77016]
[1732886888778,0.0866457,3610.3,3609.6,2.77036]
[1732886888977,2.76985,3610.3,3609.7,2.77029]
[1732886889191,0.08664341,3610.2,3609.6,2.77036]
[1732886889391,0.08664341,3610.2,3609.8,2.77023]
[1732886890489,1.25724341,3610.4,3609.7,0.277036]
[1732886890689,0.08664341,3610.3,3609.8,2.77022]
[1732886891004,1.1706,3610.4,3609.8,2.77022]
[1732886891370,1.25724502,3610.4,3609.8,2.77022]
[1732886891570,2.76986,3610.3,3609.8,2.77022]
[1732886891907,5.87236367,3610.2,3609.4,2.77051]
[1732886892063,2.85670502,3610.1,3609.5,2.77041]
[1732886892268,2.77009,3610.0,3609.4,0.401191]
[1732886892589,2.77009,3610.0,3609.4,3.171711]
[1732886893967,5.78572865,3610.2,3609.4,0.401191]
[1732886894165,2.85665992,3610.1,3609.2,2.77069]
[1732886894400,3.01578865,3610.2,3609.6,2.77038]
[1732886894610,0.0866493,3610.1,3609.6,2.77038]
[1732886894795,2.8566693,3610.1,3609.6,2.77038]
[1732886894977,2.77002,3610.1,3609.6,2.77038]
[1732886896304,2.77002,3610.1,3609.4,2.77047]
[1732886896503,2.77017,3609.9,3609.4,2.77047]
[1732886896818,2.77002,3610.1,3609.4,3.448724]
[1732886897168,0.08664965,3610.0,3609.5,2.77045]
[1732886898929,0.08664948,3610.0,3609.5,2.77045]
[1732886899434,0.08664948,3610.1,3609.8,2.77018]
[1732886900007,0.08664948,3610.1,3609.6,2.77039]
[1732886900201,0.08664948,3610.1,3609.6,3.3923074]
[1732886900730,2.77013,3610.0,3609.4,3.448784]
[1732886900930,2.85682948,3609.9,3609.4,3.448784]
[1732886901100,2.77018,3609.9,3609.4,3.448784]
[1732886901304,4.17898865,3609.8,3608.9,0.5534739]
[1732886901538,4.17898865,3609.8,3608.8,2.77093]
[1732886901539,5.78638865,3609.4,3608.8,2.77093]
[1732886901722,5.78638865,3609.4,3607.5,0.1]
[1732886901723,1.2483,3609.3,3608.4,2.77131]
[1732886902034,3.01578865,3609.0,3608.3,3.95157]
[1732886902185,1.2483,3608.9,3608.3,2.77137]
[1732886902412,1.2483,3608.9,3608.5,2.77117]
[1732886902835,2.7703,3609.8,3603.9,0.38006772]
[1732886902836,1.2483,3608.3,3607.2,1.1802]
[1732886903046,4.01969,3608.3,3607.7,2.77179]
[1732886903353,1.2483,3608.3,3607.8,2.77175]
[1732886903644,4.01972,3608.3,3607.7,2.77179]
[1732886903850,4.01972,3608.3,3607.2,1.1802]
[1732886903851,5.78731865,3608.2,3607.6,2.77192]
[1732886904008,3.01578865,3608.2,3607.7,2.7718]
[1732886904213,3.01578865,3608.2,3607.8,2.77175]
[1732886905659,1.2483,3608.3,3607.8,2.77175]
[1732886906353,4.01969,3608.3,3607.7,2.77184]
[1732886906719,1.2483,3608.3,3607.5,2.77194]
[1732886906914,2.77154,3608.1,3607.5,2.77194]